[Event "VII Totalizator Sportowy 2022"]
[Site "Bydgoszcz"]
[Date "2022.06.28"]
[Round "4.21"]
[White "Zebracki, Tomasz"]
[Black "Lambrecht, Tomasz"]
[Result "1-0"]
[ECO "D00"]
[WhiteElo "2200"]
[BlackElo "1956"]
[Annotator "RC"]
[PlyCount "94"]
[EventDate "2022.06.25"]
[EventType "swiss"]
[EventCountry "POL"]
[SourceTitle "playchess.com"]
[Source "ChessBase"]
[SourceQuality "1"]
[TimeControl "40/5400+30:1800+30"]

1. d4 {[%emt 0:00:02]} d5 {[%emt 0:00:54]} 2. Bf4 {[%emt 0:00:05]} c5 {[%emt 0:01:03]} 3. Nc3 {[%emt 0:00:33]} Nf6 {[%emt 0:02:58]} 4. e3 {[%emt 0:00:08]} cxd4 5. exd4 {[%emt 0:00:11]} a6 {[%emt 0:00:24]} 6. Nf3 {[%emt 0:02:37]} Nc6 {[%emt 0:00:30]} 7. Be2 {[%emt 0:01:35]} Bg4 {[%emt 0:00:05]} 8. h3 {[%emt 0:04:25]} Bxf3 9. Bxf3 {[%emt 0:00:11]} e6 {[%emt 0:01:35]} 10. O-O {[%emt 0:03:01]} Bd6 {[%emt 0:03:56]} 11. Ne2 {[%emt 0:00:12]} Qc7 {[%emt 0:06:56]} 12. Bg5 {[%emt 0:02:43]} O-O {[%emt 0:00:43]} 13. Bxf6 gxf6 {[%emt 0:00:12]} 14. Qd2 {[%emt 0:04:10]} Ne7 15. Rac1 {[%emt 0:04:36]} Rac8 {[%emt 0:15:29]} 16. g3 {[%emt 0:06:01]} Kg7 {[%emt 0:07:01]} 17. Bg2 {[%emt 0:10:37]} b5 {[%emt 0:02:25]} 18. Kh1 {[%emt 0:03:09]} Rg8 {[%emt 0:01:03]} 19. h4 {[%emt 0:08:50]} Kh8 {[%emt 0:05:35]} 20. Ng1 {[%emt 0:15:33]} Qc4 {[%emt 0:08:05]} 21. a3 {[%emt 0:03:00]} Rc7 {[%emt 0:02:46]} 22. Nf3 {[%emt 0:01:32]} Rgc8 {[%emt 0:03:29]} 23. Rfe1 {[%emt 0:00:51]} Qa4 {[%emt 0:12:02]} 24. c3 {[%emt 0:00:21]} Ng8 {[%emt 0:01:02]} 25. Bf1 {[%emt 0:02:36]} a5 {[%emt 0:07:20]} 26. Ra1 {[%emt 0:00:01]} Qb3 {[%emt 0:01:12]} 27. Re3 {[%emt 0:00:26]} Bf8 {[%emt 0:06:09]} 28. c4 {[%emt 0:04:18]} Qxe3 {[%emt 0:00:47]} 29. fxe3 {[%emt 0:00:36]} bxc4 {[%emt 0:00:06]} 30. Qxa5 {[%emt 0:00:35]} Rb7 {[%emt 0:00:01]} 31. Qd2 {[%emt 0:04:59]} Rcb8 {[%emt 0:00:12]} 32. Ra2 {[%emt 0:00:15]} f5 {[%emt 0:00:14]} 33. Ne5 {[%emt 0:00:45]} Nf6 {[%emt 0:00:25]} 34. Bg2 {[%emt 0:03:24]} Bd6 {[%emt 0:02:18]} 35. Nxc4 {[%emt 0:05:05]} Bxg3 {[%emt 0:00:16]} 36. Ne5 {[%emt 0:00:55]} Bxe5 {[%emt 0:04:30]} 37. dxe5 {[%emt 0:00:06]} Ng4 {[%emt 0:00:01]} 38. b4 {[%emt 0:02:06]} Nxe5 {[%emt 0:00:01]} 39. Rc2 {[%emt 0:00:19]} f6 {[%emt 0:00:40]} 40. Qc1 {[%emt 0:00:00]} Ra7 {[%emt 0:00:00]} 41. Rc8+ {[%emt 0:01:19]} Rxc8 {[%emt 0:02:46]} 42. Qxc8+ {[%emt 0:00:01]} Kg7 {[%emt 0:00:01]} 43. Qxe6 {[%emt 0:07:33]} Rxa3 {[%emt 0:00:01]} 44. Qxf5 {[%emt 0:00:11]} Rxe3 {[%emt 0:00:02]} 45. Bxd5 {[%emt 0:00:43]} Re1+ {[%emt 0:00:30]} 46. Kg2 {[%emt 0:00:15]} Re2+ {[%emt 0:00:05]} 47. Kf1 {[%emt 0:01:19]} Ng6 {[%emt 0:00:44]} 1-0

[Event "VII Totalizator Sportowy 2022"]
[Site "Bydgoszcz"]
[Date "2022.06.28"]
[Round "4.22"]
[White "Sliwicki, Damian"]
[Black "Paprocki, Jaroslaw"]
[Result "0-1"]
[ECO "C42"]
[WhiteElo "2168"]
[BlackElo "2165"]
[Annotator "RC"]
[PlyCount "108"]
[EventDate "2022.06.25"]
[EventType "swiss"]
[EventCountry "POL"]
[SourceTitle "playchess.com"]
[Source "ChessBase"]
[SourceQuality "1"]
[TimeControl "40/5400+30:1800+30"]

1. e4 e5 2. Nf3 Nf6 3. Nxe5 d6 4. Nf3 Nxe4 5. Nc3 Nxc3 6. dxc3 Be7 7. Be3 O-O 8. Qd2 Nd7 9. O-O-O Nc5 10. Kb1 Qe8 11. Nd4 a6 12. Rg1 Ne4 13. Qc1 c5 14. Ne2 b5 15. g4 Bb7 16. Bg2 Rb8 17. Nf4 b4 18. c4 Nc3+ 19. bxc3 Bxg2 20. Rxg2 bxc3+ 21. Ka1 Rb2 22. Nd5 Bf6 23. g5 Be5 24. Qxb2 cxb2+ 25. Kb1 Qa4 26. Rg4 f5 27. gxf6 Bxf6 28. Bh6 Be5 29. Be3 Rf3 30. Rdg1 Kf7 31. h4 h5 32. Re4 g6 33. Re1 Qa5 34. Bf4 Qxe1+ 35. Rxe1 Bxf4 36. Re7+ Kf8 37. Re6 Be5 38. Rxg6 Rxf2 39. c3 Rh2 40. Rh6 Rxh4 41. Kxb2 Kg7 42. Re6 Rxc4 43. Kb3 Re4 44. Nc7 h4 45. Ne8+ Kf7 46. Nxd6+ Kxe6 47. Nxe4 Kf5 48. Nf2 Bg3 49. Nh1 Ke4 50. Kc4 Kf3 51. Kxc5 Kg2 52. Nxg3 hxg3 53. Kb6 Kf3 54. c4 g2 0-1

[Event "VII Totalizator Sportowy 2022"]
[Site "Bydgoszcz"]
[Date "2022.06.28"]
[Round "4.23"]
[White "Skurniak, Szymon"]
[Black "Hulka, Valentyn"]
[Result "1-0"]
[ECO "B21"]
[WhiteElo "1960"]
[BlackElo "2123"]
[Annotator "NA RC"]
[PlyCount "119"]
[EventDate "2022.06.25"]
[EventType "swiss"]
[EventCountry "POL"]
[SourceTitle "playchess.com"]
[Source "ChessBase"]
[SourceQuality "1"]
[TimeControl "40/5400+30:1800+30"]

1. e4 c5 2. f4 d5 3. exd5 Nf6 4. Nc3 Nxd5 5. Nf3 e6 6. Ne5 Nd7 7. Qf3 Nb4 8. Bd3 Nxe5 9. fxe5 Nxd3+ 10. cxd3 Qc7 11. O-O Qxe5 12. Qxf7+ Kd8 13. Ne4 Be7 14. Qf4 Qd4+ 15. Qe3 e5 16. Rb1 Be6 17. b3 Kd7 18. Bb2 Qxe3+ 19. dxe3 Bd6 20. d4 cxd4 21. exd4 exd4 22. Bxd4 Bd5 23. Nc3 Be6 24. Rbd1 Kc6 25. Bxg7 Rhg8 26. Ne4 Bd5 27. Nxd6 Rxg7 28. g3 Re7 29. Nf5 Re5 30. Nd4+ Kc5 31. Rf4 Rae8 32. Kf2 Re4 33. Rxe4 Rxe4 34. Ne2 Bc6 35. h4 a5 36. a3 Re7 37. Rc1+ Kb6 38. Nf4 Kb5 39. Rc3 Rd7 40. Ke2 Rd4 41. Nd3 Bd5 42. Nf4 Bc6 43. Rd3 Re4+ 44. Kd2 Kc5 45. Ne2 b5 46. Rc3+ Kd6 47. Re3 b4 48. axb4 axb4 49. Nf4 Ke5 50. Nd3+ Kd4 51. Nxb4 Rxe3 52. Nc2+ Ke4 53. Nxe3 Kf3 54. g4 Bb5 55. b4 Kg3 56. h5 Kf4 57. Kc3 Kxe3 58. g5 Bd3 59. b5 Be4 60. g6 1-0

[Event "VII Totalizator Sportowy 2022"]
[Site "Bydgoszcz"]
[Date "2022.06.28"]
[Round "4.24"]
[White "Kolodziejski, Piotr"]
[Black "Malczyk, Radoslaw"]
[Result "1/2-1/2"]
[ECO "B27"]
[WhiteElo "2107"]
[BlackElo "2067"]
[Annotator "NA RC"]
[PlyCount "148"]
[EventDate "2022.06.25"]
[EventType "swiss"]
[EventCountry "POL"]
[SourceTitle "playchess.com"]
[Source "ChessBase"]
[SourceQuality "1"]
[TimeControl "40/5400+30:1800+30"]

1. e4 c5 2. Nf3 g6 3. c4 Nc6 4. d4 cxd4 5. Nxd4 Nf6 6. Nc3 d6 7. Be2 Nxd4 8. Qxd4 Bg7 9. Be3 O-O 10. Qd2 a5 11. f3 a4 12. Rc1 Be6 13. Kf2 Nd7 14. Rhd1 f5 15. exf5 Bxf5 16. Kg1 Nf6 17. Nb5 Bd7 18. Qb4 Qa5 19. Qxa5 Rxa5 20. Bb6 Raa8 21. Nc3 Bh6 22. Rc2 Bf5 23. Bd3 Nd7 24. Bd4 Bxd3 25. Rxd3 Rfc8 26. Nd5 Kf7 27. Rdc3 e6 28. Nb4 Nb8 29. c5 d5 30. c6 Nxc6 31. Nxc6 Rxc6 32. Rxc6 bxc6 33. Rxc6 Bf4 34. g3 e5 35. Bf2 Bd2 36. Kf1 h5 37. Ke2 Ba5 38. Kd3 Bd8 39. Rd6 Rb8 40. Ba7 Ra8 41. Rxd5 Ke6 42. Ke4 Rxa7 43. Rxd8 Rb7 44. Rd2 g5 45. Ke3 Kf5 46. Kd3 g4 47. fxg4+ hxg4 48. Rf2+ Ke6 49. Kc4 Rb8 50. b4 axb3 51. axb3 Rc8+ 52. Kd3 Kd5 53. Ra2 Rc1 54. Ra5+ Ke6 55. b4 Rh1 56. Ra6+ Kd5 57. Ra5+ Ke6 58. Ra2 Rb1 59. Ra6+ Kd5 60. Ra5+ Ke6 61. b5 Rb2 62. Kc3 Rxh2 63. b6 Kd6 64. b7 Kc7 65. Rb5 Kb8 66. Rb3 Rf2 67. Rb5 Rf3+ 68. Kd2 Rxg3 69. Rxe5 Kxb7 70. Ke2 Kc6 71. Kf2 Rf3+ 72. Kg2 Kd6 73. Re4 Rf5 74. Rxg4 Ke6 1/2-1/2

[Event "VII Totalizator Sportowy 2022"]
[Site "Bydgoszcz"]
[Date "2022.06.28"]
[Round "4.25"]
[White "Zaninotto, Franco"]
[Black "Laux, Dominik"]
[Result "1/2-1/2"]
[ECO "B51"]
[WhiteElo "2069"]
[BlackElo "2263"]
[Annotator "TA"]
[PlyCount "82"]
[EventDate "2022.06.25"]
[EventType "swiss"]
[EventCountry "POL"]
[SourceTitle "playchess.com"]
[Source "ChessBase"]
[SourceQuality "1"]
[TimeControl "40/5400+30:1800+30"]

{[%evp 9,82,16,11,6,15,18,21,26,75,63,86,90,82,63,58,54,71,39,113,74,89,103,120,60,55,43,64,60,118,-2,22,22,21,0,0,0,10,6,4,10,22,14,18,20,19,23,36,10,12,0,0,0,0,8,78,78,70,68,66,21,10,8,16,0,0,0,0,0,0,0,0,0,0,0,0]} 1. e4 {[%emt 0:00:04]} c5 {[%emt 0:00:24]} 2. Nf3 {[%emt 0:00:14]} d6 {[%emt 0:00:24]} 3. Bb5+ {[%emt 0:00:09]} Nd7 {[%emt 0:00:32]} 4. Ba4 {[%emt 0:00:18]} Ngf6 {[%emt 0:02:54]} 5. O-O e6 {[%emt 0:04:39]} 6. Re1 {[%emt 0:00:51] B51: Sicilian: Moscow Variation (3 Bb5+) without 3...Bd7.} Be7 {[%emt 0:01:29]} 7. c3 {[%emt 0:00:16]} O-O {[%emt 0:00:34]} 8. d4 {[%emt 0:00:19] [#]} h6 $146 {[%emt 0:03:23]} (8... cxd4 $11 9. cxd4 a6) ({Predecessor:} 8... Qc7 9. e5 Nd5 10. Nbd2 cxd4 11. cxd4 dxe5 12. dxe5 Nc5 13. Bb5 Rd8 14. a3 a6 {0-1 (45) Kosteniuk,A (2510)-Tan,Z (2525) Chess.com INT 2022}) 9. e5 $16 {[%emt 0:04:55]} Nh7 {[%emt 0:04:13]} 10. Bc2 {[%emt 0:12:54]} Re8 {[%emt 0:09:40]} 11. Nbd2 {[%emt 0:07:39]} cxd4 {[%emt 0:14:10]} 12. cxd4 {[%emt 0:02:11]} dxe5 {[%emt 0:03:22]} 13. dxe5 {[%emt 0:00:54]} Qc7 {[%emt 0:04:54]} (13... b6 $14) 14. Nb3 {[%emt 0:07:40]} b6 {[%emt 0:12:51]} 15. Bf4 {[%emt 0:05:29]} Bb7 {[%emt 0:02:45] [#]} 16. Rc1 {[%emt 0:02:30]} (16. Nfd4 $1 $16) 16... Qd8 $14 {[%emt 0:00:50]} 17. Qd3 {[%emt 0:10:08]} Ndf8 {[%emt 0:02:44]} 18. Qe2 {[%emt 0:08:19] 0x0.0022fc473fc0dp-1022s more active pieces. The black rooks are badly placed.} Ng5 {[%emt 0:04:08]} (18... Ng6 $14 19. Bxg6 fxg6) 19. Nbd4 {[%emt 0:13:46]} ({Better is} 19. Nfd4 $16) 19... Bc5 {[%emt 0:08:29]} 20. Bxg5 {[%emt 0:06:08]} hxg5 {[%emt 0:00:06]} 21. Be4 {[%emt 0:01:25]} Bxe4 {[%emt 0:11:34]} 22. Qxe4 {[%emt 0:00:11]} Qd5 {[%emt 0:01:43]} 23. Nb3 {[%emt 0:06:07]} Qxe4 {[%emt 0:01:07]} 24. Rxe4 {[%emt 0:00:05]} Be7 {[%emt 0:00:31]} 25. h3 {[%emt 0:02:50]} Rac8 {[%emt 0:02:44]} 26. Rec4 $36 {[%emt 0:00:41][%mdl 2048] White fights for an advantage.} Rxc4 {[%emt 0:00:12]} 27. Rxc4 {[%emt 0:00:03]} Rd8 {[%emt 0:00:07]} 28. Nbd4 {[%emt 0:01:24]} Bc5 {[%emt 0:01:33]} 29. b4 {[%emt 0:01:27]} Bxd4 {[%emt 0:00:21]} 30. Rxd4 {[%emt 0:00:13]} Rxd4 {[%emt 0:00:43]} 31. Nxd4 $11 {[%emt 0:00:05][%mdl 4096] Endgame KN-KN} Nd7 {[%emt 0:00:06]} (31... a6 $11) 32. Nc6 $16 {[%emt 0:00:47]} a6 {[%emt 0:00:07]} 33. Kf1 {[%emt 0:01:55]} f6 {[%emt 0:01:15]} 34. exf6 {[%emt 0:00:11]} gxf6 {[%emt 0:00:04] The position is equal.} 35. Ke2 {[%emt 0:00:40]} Kf7 {[%emt 0:00:43]} 36. Ke3 {[%emt 0:01:06]} e5 {[%emt 0:02:06]} 37. Ke4 {[%emt 0:00:57] [#] Kd5 is the strong threat.} Ke6 {[%emt 0:00:20]} 38. Nd8+ {[%emt 0:01:26]} Ke7 {[%emt 0:00:17]} 39. Nc6+ {[%emt 0:00:29]} Kd6 {[%emt 0:00:39]} 40. Nd8 {[%emt 0:00:00]} Ke7 {[%emt 0:00:00]} 41. Nc6+ {[%emt 0:02:46]} Kd6 {[%emt 0:01:29] Weighted Error Value: White=0.15 (very precise) /Black=0.12 (very precise)} 1/2-1/2

[Event "VII Totalizator Sportowy 2022"]
[Site "Bydgoszcz"]
[Date "2022.06.29"]
[Round "5.1"]
[White "Jakubowski, Krzysztof"]
[Black "Heberla, Bartlomiej"]
[Result "1/2-1/2"]
[ECO "C47"]
[WhiteElo "2475"]
[BlackElo "2576"]
[Annotator "TA"]
[PlyCount "43"]
[EventDate "2022.06.25"]
[EventType "swiss"]
[EventCountry "POL"]
[SourceTitle "playchess.com"]
[Source "ChessBase"]
[SourceQuality "1"]
[TimeControl "40/5400+30:1800+30"]

{[%evp 15,29,0,0,-6,14,14,14,18,17,16,16,16,10,21,16,-3]} 1. e4 {[%emt 0:00:02]} e5 {[%emt 0:07:29]} 2. Nf3 {[%emt 0:01:29]} Nc6 {[%emt 0:00:13]} 3. Nc3 {[%emt 0:00:15]} Nf6 {[%emt 0:00:08]} 4. d4 {[%emt 0:00:06]} exd4 {[%emt 0:00:06]} 5. Nxd4 {[%emt 0:00:05]} Bb4 {[%emt 0:00:05]} 6. Nxc6 {[%emt 0:00:06]} bxc6 {[%emt 0:00:05]} 7. Bd3 {[%emt 0:00:05]} O-O {[%emt 0:00:39]} 8. O-O {[%emt 0:00:06]} d5 {[%emt 0:01:20] The position is equal.} 9. exd5 {[%emt 0:00:16] C47: Scotch Four Knights and Four Knights with 4 g3.} Bg4 {[%emt 0:02:07]} 10. f3 {[%emt 0:06:20]} Bh5 {[%emt 0:00:26]} 11. Bg5 {[%emt 0:07:15]} cxd5 {[%emt 0:01:57]} 12. Bxf6 {[%emt 0:06:46]} Qxf6 {[%emt 0:00:54]} 13. Nxd5 {[%emt 0:00:15]} Bc5+ {[%emt 0:00:30]} 14. Kh1 {[%emt 0:00:06]} Qxb2 {[%emt 0:00:17]} 15. Nf4 {[%emt 0:04:06] [#] An interesting draw.  Weighted Error Value: White=0.00 (flawless) /Black=0.03 (flawless)} {Predecessor:} Bg6 $146 16. Nxg6 hxg6 17. Bxg6 Rad8 18. Bd3 Bd4 19. Rb1 Qxa2 20. f4 Rb8 21. Rb3 Rxb3 22. cxb3 {0-1 (35) Cerovic,Z (2035)-Pajkovic,V (2426) Podgorica 2019} 1/2-1/2

[Event "VII Totalizator Sportowy 2022"]
[Site "Bydgoszcz"]
[Date "2022.06.29"]
[Round "5.2"]
[White "Lewtak, Damian"]
[Black "Krasenkow, Michal"]
[Result "0-1"]
[ECO "A36"]
[WhiteElo "2384"]
[BlackElo "2576"]
[Annotator "TA"]
[PlyCount "111"]
[EventDate "2022.06.25"]
[EventType "swiss"]
[EventCountry "POL"]
[SourceTitle "playchess.com"]
[Source "ChessBase"]
[SourceQuality "1"]
[TimeControl "40/5400+30:1800+30"]

{[%evp 19,111,-6,0,-4,0,13,30,14,19,6,0,-39,-33,-30,-19,-34,-30,-25,7,0,16,0,0,-15,-4,0,0,0,0,0,0,-14,0,0,0,-17,-15,-65,-69,-197,-197,-160,-58,-56,-88,-190,-89,-90,-69,-69,-70,-160,-160,-160,-160,-160,-160,-160,-160,-160,-160,-160,-160,-233,-233,-225,-225,-225,-209,-226,-208,-6319,-8524,-6800,-518,-6424,-6863,-29962,-29959,-29963,-29964,-29971,-29972,-29977,-29974,-29979,-29978,-29980,-29981,-29981,-29982,-29981,-29980,-29966]} 1. c4 {[%emt 0:00:02]} c5 {[%emt 0:00:31]} 2. Nc3 {[%emt 0:00:06]} Nc6 {[%emt 0:00:05]} 3. g3 {[%emt 0:00:17]} g6 {[%emt 0:00:04]} 4. Bg2 {[%emt 0:00:25]} Bg7 {[%emt 0:00:04]} 5. d3 {[%emt 0:01:13]} e6 {[%emt 0:00:16]} 6. e4 {[%emt 0:00:37]} Nge7 {[%emt 0:00:13]} 7. Nge2 {[%emt 0:00:38]} O-O {[%emt 0:00:06]} 8. O-O {[%emt 0:00:39]} d6 {[%emt 0:00:04]} 9. Be3 {[%emt 0:02:39] 9.Rb1 injects fresh life into this line.} Nd4 {[%emt 0:00:05]} 10. Qd2 {[%emt 0:00:07]} Rb8 {[%emt 0:00:49]} 11. Bh6 {[%emt 0:01:14] A36: Symmetrical English vs ...g6: 4 Bg2 Bg7.} Nxe2+ $5 {[%emt 0:02:13][%mdl 4] Exploring less charted territory.} 12. Nxe2 {[%emt 0:00:07]} e5 {[%emt 0:00:02] [#]} 13. Nc3 $146 {[%emt 0:07:51] White has an edge.} ({Predecessor:} 13. Bxg7 Kxg7 14. h3 Be6 15. f4 f6 16. g4 Nc6 17. f5 Bd7 18. Rfb1 Qa5 19. Rd1 {½-½ (59) Olszewski,J (1895)-Cylwik,Z (1979) Bialystok 2010}) 13... Nc6 {[%emt 0:00:41]} 14. Rab1 {[%emt 0:02:32]} a6 {[%emt 0:08:08]} 15. a3 {[%emt 0:02:23]} b5 {[%emt 0:02:15]} 16. cxb5 {[%emt 0:03:57]} axb5 {[%emt 0:00:17]} 17. b4 {[%emt 0:00:39]} cxb4 {[%emt 0:05:09]} 18. axb4 {[%emt 0:00:07]} Nd4 {[%emt 0:00:51]} 19. Bg5 {[%emt 0:03:20]} Qd7 {[%emt 0:14:03]} (19... Bf6 $5 {[%cal Rf6g5]} 20. Be3 Be6 $11) 20. Be3 {[%emt 0:04:59]} Bb7 {[%emt 0:00:27]} 21. Nd5 {[%emt 0:10:20]} Bxd5 {[%emt 0:00:42]} 22. exd5 {[%emt 0:00:06]} Rfc8 {[%emt 0:02:08]} 23. Bxd4 {[%emt 0:00:48]} exd4 {[%emt 0:00:01]} 24. Ra1 {[%emt 0:00:08]} Rc3 {[%emt 0:01:19]} 25. Ra6 {[%emt 0:02:53]} h5 {[%emt 0:07:11]} 26. Rfa1 {[%emt 0:02:11]} h4 {[%emt 0:01:56]} 27. gxh4 {[%emt 0:02:36]} Qf5 {[%emt 0:05:33]} 28. Be4 {[%emt 0:13:53]} (28. Rxd6 $11 Rxd3 29. Qg5) 28... Qg4+ $15 {[%emt 0:00:49]} 29. Kf1 {[%emt 0:02:21]} ({White should try} 29. Bg2 $15) 29... Qxh4 $19 {[%emt 0:03:25]} 30. Rxd6 {[%emt 0:03:38]} Bf8 {[%emt 0:01:19]} ({And not} 30... Qxh2 31. Rda6 $15) (30... Re8 $1 $17 31. Rc6 Rxe4 32. dxe4 Qxe4) 31. Rc6 {[%emt 0:03:10]} Bxb4 {[%emt 0:00:50] White must now prevent ...Rxc6.} 32. Qb2 {[%emt 0:02:27] [#]} (32. Qe2 $17 {might work better.}) 32... Rxc6 {[%emt 0:11:43]} (32... Qh3+ $1 $19 {and Black stays clearly on top.} 33. Kg1 Rxc6 34. dxc6 Bc3) 33. dxc6 $17 {[%emt 0:00:11]} Bc3 {[%emt 0:00:06]} 34. c7 $1 {[%emt 0:01:14]} Qh3+ {[%emt 0:17:55]} (34... Bxb2 $2 35. cxb8=Q+ Kg7 36. Ra8 Qh3+ 37. Ke2 Qg4+ 38. Bf3 Qe6+ 39. Kf1 $18) ({But not} 34... Rc8 35. Qxb5 Bxa1 36. Qd7 Rxc7 37. Qxc7 $11) 35. Bg2 {[%emt 0:01:04] White is on the road to losing.} (35. Kg1 $15 Qg4+ 36. Kf1) 35... Qxd3+ {[%emt 0:00:14]} (35... Bxb2 36. cxb8=Q+ Kg7 37. Bxh3 Bxa1 38. Qe5+ Kh7 39. Bd7 Bc3 40. Qf6) 36. Qe2 {[%emt 0:03:38]} Qxe2+ {[%emt 0:00:06]} 37. Kxe2 {[%emt 0:00:03][%mdl 4096] Endgame KRB-KRB} Re8+ {[%emt 0:00:05]} 38. Kd3 {[%emt 0:00:04] White threatens Ra8 and mate.} Bxa1 {[%emt 0:00:07]} 39. Bb7 {[%emt 0:00:05] Prevents Rc8.} b4 {[%emt 0:00:19]} 40. Kc4 {[%emt 0:00:00]} d3 {[%emt 0:00:00] ...d2 is the strong threat.} 41. Kxd3 {[%emt 0:02:50]} (41. c8=R $17 Rxc8+ 42. Bxc8) 41... Be5 $19 {[%emt 0:01:11]} 42. c8=Q {[%emt 0:00:04]} Rxc8 {[%emt 0:00:06]} 43. Bxc8 {[%emt 0:00:03]} Bxh2 {[%emt 0:00:06] And now ...Kh7 would win. KB-KB} 44. Ba6 {[%emt 0:01:26]} Kg7 {[%emt 0:01:18]} 45. Bc4 $2 {[%emt 0:00:41]} (45. Kc4) 45... f5 {[%emt 0:00:21] aiming for ...Bd6.} 46. Kd4 {[%emt 0:01:06]} Bf4 {[%emt 0:01:58]} (46... g5 $142 47. f3 Bf4) 47. Bb3 {[%emt 0:01:13] [#]} (47. f3 $142 Kf6 48. Bb3) 47... g5 $1 {[%emt 0:00:58][%cal Bg6g5,Bg5g4][%mdl 32] Hoping for ...g4.} 48. Be6 {[%emt 0:01:51]} Kf6 {[%emt 0:00:08] Black mates.} 49. Bc8 {[%emt 0:00:24]} g4 {[%emt 0:00:15]} 50. Kc4 {[%emt 0:00:28]} Bd2 {[%emt 0:02:03]} 51. Bd7 {[%emt 0:00:30]} Ke5 {[%emt 0:00:48]} 52. Bc8 {[%emt 0:00:09]} Kf4 {[%emt 0:01:08]} 53. Be6 {[%emt 0:00:14]} Be1 {[%emt 0:00:06]} 54. Bd7 {[%emt 0:00:17]} Kg5 {[%emt 0:00:13]} 55. Be6 {[%emt 0:00:12]} f4 {[%emt 0:00:07]} 56. Kd4 {Weighted Error Value: White=0.81/Black=0.29 (precise)} 0-1

[Event "VII Totalizator Sportowy 2022"]
[Site "Bydgoszcz"]
[Date "2022.06.29"]
[Round "5.3"]
[White "Sieciechowicz, Marcin"]
[Black "Licznerski, Lukasz"]
[Result "1/2-1/2"]
[ECO "D17"]
[WhiteElo "2388"]
[BlackElo "2439"]
[Annotator "TA"]
[PlyCount "78"]
[EventDate "2022.06.25"]
[EventType "swiss"]
[EventCountry "POL"]
[SourceTitle "playchess.com"]
[Source "ChessBase"]
[SourceQuality "1"]
[TimeControl "40/5400+30:1800+30"]

{[%evp 20,78,25,16,26,23,16,33,15,0,0,0,0,0,14,27,20,19,29,19,21,26,30,22,18,0,19,0,0,0,0,0,0,0,0,0,241,257,253,264,233,253,241,239,257,247,254,0,6,6,6,6,6,0,0,0,0,0,0,0,0]} 1. d4 {[%emt 0:00:03]} d5 {[%emt 0:02:04]} 2. c4 {[%emt 0:00:26]} c6 {[%emt 0:00:03]} 3. Nf3 {[%emt 0:00:06][%cal Bg1f3,Bf3e5,Be5c4,Bc4e3][%mdl 32]} Nf6 {[%emt 0:00:06]} 4. Nc3 {[%emt 0:00:12]} dxc4 {[%emt 0:00:08]} 5. a4 {[%emt 0:00:13]} Bf5 {[%emt 0:00:05]} 6. Ne5 {[%emt 0:00:11]} Nbd7 {[%emt 0:00:16]} 7. Nxc4 {[%emt 0:00:06]} Qc7 {[%emt 0:00:27]} 8. g3 {[%emt 0:00:21]} e5 {[%emt 0:00:39]} 9. dxe5 {[%emt 0:00:20]} Nxe5 {[%emt 0:00:07]} 10. Bf4 {[%emt 0:00:12]} Nfd7 {[%emt 0:01:21]} 11. Bg2 {[%emt 0:00:28]} g5 $1 {[%emt 0:01:09] 11...g5 is better than 11...f6. D17: Slav Defence: 5 a4 Bf5: Lines with 6 Nh4 and 6 Ne5.} 12. Ne3 {[%emt 0:00:45]} gxf4 {[%emt 0:00:22]} 13. Nxf5 {[%emt 0:00:05]} O-O-O {[%emt 0:01:07] White is slightly better.} ({Weaker is} 13... Qb6 14. gxf4 Ng6 15. e3 $16) 14. O-O {[%emt 0:03:58]} fxg3 {[%emt 0:14:48]} 15. hxg3 {[%emt 0:01:03]} h5 {[%emt 0:04:01][%cal Oh5h4]} 16. Rc1 {[%emt 0:07:20][%cal Oc3d5] And now Nd5! would win.} Nc5 {[%emt 0:12:44]} 17. Qc2 {[%emt 0:08:47] Hoping for b4.} a5 {[%emt 0:09:00]} 18. Rfd1 {[%emt 0:05:39]} Rxd1+ {[%emt 0:23:32]} 19. Rxd1 {[%emt 0:01:24]} Ne6 {[%emt 0:01:56]} 20. Ne4 {[%emt 0:03:45][%cal Bc3e4,Be4f6,Bf6h5][%mdl 32]} Kb8 {[%emt 0:01:05]} 21. e3 {[%emt 0:13:23]} Bb4 {[%emt 0:00:55] [#]} 22. Qe2 $146 {[%emt 0:05:05]} ({Predecessor:} 22. b3 Ng6 23. Qb2 Rd8 24. Qa1 Ka7 25. Bf3 Rxd1+ 26. Bxd1 Qd8 27. Qb1 {½-½ (42) Najer,E (2658)-Mamedov,R (2657) Baku 2015}) 22... Ng6 {[%emt 0:01:46]} 23. Nf6 {[%emt 0:17:53]} Nc5 {[%emt 0:00:16] Inhibits Rd7. Threatens to win with ...Qe5.} 24. Nxh5 {[%emt 0:06:53]} Qe5 {[%emt 0:02:13]} 25. g4 {[%emt 0:00:24]} Nxa4 {[%emt 0:02:05]} 26. Rd4 {[%emt 0:06:30]} Nc5 {[%emt 0:01:14]} 27. Qc2 {[%emt 0:03:26] Black must now prevent f4.} Rc8 $2 {[%emt 0:14:49]} (27... Ne6 $11 {and Black stays safe.} 28. Rd1 Qc5) 28. f4 $18 {[%emt 0:01:54]} Qh8 {[%emt 0:00:02] [#]} 29. Rxb4 $1 {[%emt 0:04:38][%mdl 512]} axb4 {[%emt 0:00:11]} 30. Qxc5 {[%emt 0:00:17]} Qxb2 {[%emt 0:00:02]} 31. Qd6+ {[%emt 0:01:03]} Ka8 {[%emt 0:03:56] [#]} 32. Qd7 $1 {[%emt 0:00:48]} Rb8 {[%emt 0:01:05]} 33. Nd4 $2 {[%emt 0:02:55] Dancing on a razor blade. Pair of Knights!} (33. Qxf7 $18 Rd8 34. Nhg3 (34. Qxg6 Rd2 $11)) 33... Nh4 {[%emt 0:01:24][%csl Gh4][%cal Rb2g2] [#] The position is equal.} 34. Bxc6 {[%emt 0:03:55] Active counter play!} bxc6 {[%emt 0:00:59]} ({Don't do} 34... Qc1+ 35. Kf2 bxc6 36. Ng3 $14) 35. Qxc6+ {[%emt 0:00:21]} Rb7 {[%emt 0:00:30]} 36. Qa4+ {[%emt 0:01:11]} Kb8 {[%emt 0:00:10][%csl Gh4][%cal Rb2g2]} 37. Qe8+ {[%emt 0:00:06]} Ka7 {[%emt 0:00:04][%csl Gh4][%cal Rb2g2]} 38. Qa4+ {[%emt 0:00:15]} Kb8 {[%emt 0:00:06][%csl Gh4][%cal Rb2g2]} 39. Qe8+ {[%emt 0:00:07]} Ka7 {White really could win this.  Weighted Error Value: White=0.11 (very precise) /Black=0.19 (very precise)} 1/2-1/2